{"text_format":"1","workbook":"xlsx","n_sheets":4,"sheets":["PR_DOBA","FORM","Obrázky","SEZNAMY"],"not_rendered":{"charts":0,"images":11,"macros":1,"external_links":1,"defined_names":23,"comments":0,"pivot_tables":0},"unopened":[],"bounds":{"document_bytes":16777216,"sheet_cells":100000,"rows_first":2000,"rows_last":500,"rows_between":2000,"halvings":0,"cell_chars":16384,"cell_head_chars":4096},"cells_cut":0,"cells_raw":0,"read":"whole","date_system":"1900"}

{"sheet":"PR_DOBA","index":0,"n_rows":49,"n_cols":11,"rows_kept":49,"cut":false,"hidden":false,"merged":[[0,4,0,5],[1,4,1,5],[9,4,9,8],[11,4,11,8],[7,0,7,3],[9,0,9,3],[11,0,11,3],[7,4,7,8],[2,4,2,5],[4,2,5,8],[13,0,13,2],[13,4,13,9],[14,0,14,1],[14,4,14,9],[15,0,15,1],[15,4,15,9],[16,0,16,1],[16,4,16,9],[17,0,17,1],[17,4,17,9],[18,0,18,1],[18,4,18,9],[19,0,19,1],[19,4,19,9],[20,0,20,1],[20,4,20,9],[21,0,21,1],[21,4,21,9],[22,0,22,1],[22,4,22,9],[23,0,23,1],[23,4,23,9],[24,0,24,1],[24,4,24,9],[25,0,25,1],[25,4,25,9],[26,0,26,1],[26,4,26,9],[27,0,27,1],[27,4,27,9],[28,0,28,1],[28,4,28,9],[29,0,29,1],[29,4,29,9],[30,0,30,1],[30,4,30,9],[31,0,31,1],[31,4,31,9],[32,0,32,1],[32,4,32,9],[33,0,33,1],[33,4,33,9],[34,0,34,1],[34,4,34,9],[35,0,35,1],[35,4,35,9],[36,0,36,1],[36,4,36,9],[37,0,37,1],[37,4,37,9],[38,0,38,1],[38,4,38,9],[39,0,39,1],[39,4,39,9],[40,0,40,1],[40,4,40,9],[41,0,41,1],[41,4,41,9],[42,0,42,1],[42,4,42,9],[48,0,48,4],[47,0,47,4],[43,0,43,1],[43,4,43,9],[44,0,44,1],[44,4,44,9]]}
[null,null,null,"Měsíc:",1]
[null,null,null,"Rok:",2021]
[null,null,null,"Dnů v měsící:",{"$f":"VALUE(DAY(DATE($E$2,$E$1+1,1)-DATE($E$2,$E$1,1)))","v":31}]
[]
[null,null,"Evidence pracovní doby "]
[]
[]
["Součást"]
[]
["Útvar/Ústav",null,null,null,null,null,null,null,null,"Období",{"$f":"DATE(E2,E1,1)","v":"2021-01-01"}]
[null,null,null,null,null,null,null,null,null,"   _____________________________"]
["Jméno"]
[]
["Den",null,null,"TYP dne","Přímá pedagogická činnost a práce související s přímou pedagogickou činností neuvedenou ve STAGU",null,null,null,null,null,"Speciální den (vyplňuje se automaticky v závislosti na TYP dne)"]
[1,null,{"$f":"IF(A15=\"\",A15,HLOOKUP(WEEKDAY(DATE(rok,mesic,A15),2),tyden,2))","v":"Pá"},null,null,null,null,null,null,null,{"$f":"IF(D15=\"\",\"\",VLOOKUP(D15,SEZNAMY!A:B,2,0))","v":""}]
[2,null,"So",null,null,null,null,null,null,null,{"$f":"IF(D16=\"\",\"\",VLOOKUP(D16,SEZNAMY!A:B,2,0))","v":""}]
[3,null,"Ne",null,null,null,null,null,null,null,{"$f":"IF(D17=\"\",\"\",VLOOKUP(D17,SEZNAMY!A:B,2,0))","v":""}]
[4,null,"Po",null,null,null,null,null,null,null,{"$f":"IF(D18=\"\",\"\",VLOOKUP(D18,SEZNAMY!A:B,2,0))","v":""}]
[5,null,"Út",null,null,null,null,null,null,null,{"$f":"IF(D19=\"\",\"\",VLOOKUP(D19,SEZNAMY!A:B,2,0))","v":""}]
[6,null,"St",null,null,null,null,null,null,null,{"$f":"IF(D20=\"\",\"\",VLOOKUP(D20,SEZNAMY!A:B,2,0))","v":""}]
[7,null,"Čt",null,null,null,null,null,null,null,{"$f":"IF(D21=\"\",\"\",VLOOKUP(D21,SEZNAMY!A:B,2,0))","v":""}]
[8,null,"Pá",null,null,null,null,null,null,null,{"$f":"IF(D22=\"\",\"\",VLOOKUP(D22,SEZNAMY!A:B,2,0))","v":""}]
[9,null,"So",null,null,null,null,null,null,null,{"$f":"IF(D23=\"\",\"\",VLOOKUP(D23,SEZNAMY!A:B,2,0))","v":""}]
[10,null,"Ne",null,null,null,null,null,null,null,{"$f":"IF(D24=\"\",\"\",VLOOKUP(D24,SEZNAMY!A:B,2,0))","v":""}]
[11,null,"Po",null,null,null,null,null,null,null,{"$f":"IF(D25=\"\",\"\",VLOOKUP(D25,SEZNAMY!A:B,2,0))","v":""}]
[12,null,"Út",null,null,null,null,null,null,null,{"$f":"IF(D26=\"\",\"\",VLOOKUP(D26,SEZNAMY!A:B,2,0))","v":""}]
[13,null,"St",null,null,null,null,null,null,null,{"$f":"IF(D27=\"\",\"\",VLOOKUP(D27,SEZNAMY!A:B,2,0))","v":""}]
[14,null,"Čt",null,null,null,null,null,null,null,{"$f":"IF(D28=\"\",\"\",VLOOKUP(D28,SEZNAMY!A:B,2,0))","v":""}]
[15,null,"Pá",null,null,null,null,null,null,null,{"$f":"IF(D29=\"\",\"\",VLOOKUP(D29,SEZNAMY!A:B,2,0))","v":""}]
[16,null,"So",null,null,null,null,null,null,null,{"$f":"IF(D30=\"\",\"\",VLOOKUP(D30,SEZNAMY!A:B,2,0))","v":""}]
[17,null,"Ne",null,null,null,null,null,null,null,{"$f":"IF(D31=\"\",\"\",VLOOKUP(D31,SEZNAMY!A:B,2,0))","v":""}]
[18,null,"Po",null,null,null,null,null,null,null,{"$f":"IF(D32=\"\",\"\",VLOOKUP(D32,SEZNAMY!A:B,2,0))","v":""}]
[19,null,"Út",null,null,null,null,null,null,null,{"$f":"IF(D33=\"\",\"\",VLOOKUP(D33,SEZNAMY!A:B,2,0))","v":""}]
[20,null,"St",null,null,null,null,null,null,null,{"$f":"IF(D34=\"\",\"\",VLOOKUP(D34,SEZNAMY!A:B,2,0))","v":""}]
[21,null,"Čt",null,null,null,null,null,null,null,{"$f":"IF(D35=\"\",\"\",VLOOKUP(D35,SEZNAMY!A:B,2,0))","v":""}]
[22,null,"Pá",null,null,null,null,null,null,null,{"$f":"IF(D36=\"\",\"\",VLOOKUP(D36,SEZNAMY!A:B,2,0))","v":""}]
[23,null,"So",null,null,null,null,null,null,null,{"$f":"IF(D37=\"\",\"\",VLOOKUP(D37,SEZNAMY!A:B,2,0))","v":""}]
[24,null,"Ne",null,null,null,null,null,null,null,{"$f":"IF(D38=\"\",\"\",VLOOKUP(D38,SEZNAMY!A:B,2,0))","v":""}]
[25,null,"Po",null,null,null,null,null,null,null,{"$f":"IF(D39=\"\",\"\",VLOOKUP(D39,SEZNAMY!A:B,2,0))","v":""}]
[26,null,"Út",null,null,null,null,null,null,null,{"$f":"IF(D40=\"\",\"\",VLOOKUP(D40,SEZNAMY!A:B,2,0))","v":""}]
[27,null,"St",null,null,null,null,null,null,null,{"$f":"IF(D41=\"\",\"\",VLOOKUP(D41,SEZNAMY!A:B,2,0))","v":""}]
[28,null,"Čt",null,null,null,null,null,null,null,{"$f":"IF(D42=\"\",\"\",VLOOKUP(D42,SEZNAMY!A:B,2,0))","v":""}]
[29,null,"Pá",null,null,null,null,null,null,null,{"$f":"IF(D43=\"\",\"\",VLOOKUP(D43,SEZNAMY!A:B,2,0))","v":""}]
[30,null,"So",null,null,null,null,null,null,null,{"$f":"IF(D44=\"\",\"\",VLOOKUP(D44,SEZNAMY!A:B,2,0))","v":""}]
[31,null,"Ne",null,null,null,null,null,null,null,{"$f":"IF(D45=\"\",\"\",VLOOKUP(D45,SEZNAMY!A:B,2,0))","v":""}]
[]
[]
["………………………………",null,null,null,null,null,null,null,null,null,"………………………………."]
["Podpis zaměstnance:",null,null,null,null,null,null,null,null,null,"Podpis nadřízeného"]

{"sheet":"FORM","index":1,"n_rows":45,"n_cols":11,"rows_kept":45,"cut":false,"hidden":true,"merged":[[43,0,43,4],[44,0,44,4],[37,0,37,1],[37,4,37,9],[38,0,38,1],[38,4,38,9],[39,0,39,1],[39,4,39,9],[35,0,35,1],[35,4,35,9],[36,0,36,1],[36,4,36,9],[40,0,40,1],[40,4,40,9],[32,0,32,1],[32,4,32,9],[33,0,33,1],[33,4,33,9],[34,0,34,1],[34,4,34,9],[29,0,29,1],[29,4,29,9],[30,0,30,1],[30,4,30,9],[31,0,31,1],[31,4,31,9],[26,0,26,1],[26,4,26,9],[27,0,27,1],[27,4,27,9],[28,0,28,1],[28,4,28,9],[23,0,23,1],[23,4,23,9],[24,0,24,1],[24,4,24,9],[25,0,25,1],[25,4,25,9],[20,0,20,1],[20,4,20,9],[21,0,21,1],[21,4,21,9],[22,0,22,1],[22,4,22,9],[17,0,17,1],[17,4,17,9],[18,0,18,1],[18,4,18,9],[19,0,19,1],[19,4,19,9],[14,0,14,1],[14,4,14,9],[15,0,15,1],[15,4,15,9],[16,0,16,1],[16,4,16,9],[11,0,11,1],[11,4,11,9],[12,0,12,1],[12,4,12,9],[13,0,13,1],[13,4,13,9],[7,0,7,3],[7,4,7,8],[9,0,9,2],[9,4,9,9],[10,0,10,1],[10,4,10,9],[0,2,1,8],[3,0,3,3],[3,4,3,8],[5,0,5,3],[5,4,5,8]]}
[null,null,"Evidence pracovní doby "]
[]
[]
["Součást",null,null,null,{"$f":"IF(PR_DOBA!E8=\"\",\"NEVYPLNĚNO\",PR_DOBA!E8)","v":"NEVYPLNĚNO"}]
[]
["Útvar/Ústav",null,null,null,{"$f":"IF(PR_DOBA!E10=\"\",\"NEVYPLNĚNO\",PR_DOBA!E10)","v":"NEVYPLNĚNO"}]
[]
["Jméno",null,null,null,{"$f":"IF(PR_DOBA!E12=\"\",\"NEVYPLNĚNO\",PR_DOBA!E12)","v":"NEVYPLNĚNO"},null,null,null,null,"Období",{"$f":"PR_DOBA!K10","v":"2021-01-01"}]
[]
["Den",null,null,"TYP dne","Přímá pedagogická činnost a práce související s přímou pedagogickou činností neuvedenou ve STAGU",null,null,null,null,null,"Speciální den (vyplňuje se automaticky v závislosti na TYP dne)"]
[{"$f":"PR_DOBA!A15","v":1},null,{"$f":"PR_DOBA!C15","v":"Pá"},{"$f":"IF(PR_DOBA!D15=\"\",\"\",PR_DOBA!D15)","v":""},{"$f":"IF(PR_DOBA!E15=\"\",\"\",PR_DOBA!E15)","v":""},null,null,null,null,null,{"$f":"IF(PR_DOBA!K15=\"\",\"\",PR_DOBA!K15)","v":""}]
[{"$f":"PR_DOBA!A16","v":2},null,{"$f":"PR_DOBA!C16","v":"So"},{"$f":"IF(PR_DOBA!D16=\"\",\"\",PR_DOBA!D16)","v":""},{"$f":"IF(PR_DOBA!E16=\"\",\"\",PR_DOBA!E16)","v":""},null,null,null,null,null,{"$f":"IF(PR_DOBA!K16=\"\",\"\",PR_DOBA!K16)","v":""}]
[{"$f":"PR_DOBA!A17","v":3},null,{"$f":"PR_DOBA!C17","v":"Ne"},{"$f":"IF(PR_DOBA!D17=\"\",\"\",PR_DOBA!D17)","v":""},{"$f":"IF(PR_DOBA!E17=\"\",\"\",PR_DOBA!E17)","v":""},null,null,null,null,null,{"$f":"IF(PR_DOBA!K17=\"\",\"\",PR_DOBA!K17)","v":""}]
[{"$f":"PR_DOBA!A18","v":4},null,{"$f":"PR_DOBA!C18","v":"Po"},{"$f":"IF(PR_DOBA!D18=\"\",\"\",PR_DOBA!D18)","v":""},{"$f":"IF(PR_DOBA!E18=\"\",\"\",PR_DOBA!E18)","v":""},null,null,null,null,null,{"$f":"IF(PR_DOBA!K18=\"\",\"\",PR_DOBA!K18)","v":""}]
[{"$f":"PR_DOBA!A19","v":5},null,{"$f":"PR_DOBA!C19","v":"Út"},{"$f":"IF(PR_DOBA!D19=\"\",\"\",PR_DOBA!D19)","v":""},{"$f":"IF(PR_DOBA!E19=\"\",\"\",PR_DOBA!E19)","v":""},null,null,null,null,null,{"$f":"IF(PR_DOBA!K19=\"\",\"\",PR_DOBA!K19)","v":""}]
[{"$f":"PR_DOBA!A20","v":6},null,{"$f":"PR_DOBA!C20","v":"St"},{"$f":"IF(PR_DOBA!D20=\"\",\"\",PR_DOBA!D20)","v":""},{"$f":"IF(PR_DOBA!E20=\"\",\"\",PR_DOBA!E20)","v":""},null,null,null,null,null,{"$f":"IF(PR_DOBA!K20=\"\",\"\",PR_DOBA!K20)","v":""}]
[{"$f":"PR_DOBA!A21","v":7},null,{"$f":"PR_DOBA!C21","v":"Čt"},{"$f":"IF(PR_DOBA!D21=\"\",\"\",PR_DOBA!D21)","v":""},{"$f":"IF(PR_DOBA!E21=\"\",\"\",PR_DOBA!E21)","v":""},null,null,null,null,null,{"$f":"IF(PR_DOBA!K21=\"\",\"\",PR_DOBA!K21)","v":""}]
[{"$f":"PR_DOBA!A22","v":8},null,{"$f":"PR_DOBA!C22","v":"Pá"},{"$f":"IF(PR_DOBA!D22=\"\",\"\",PR_DOBA!D22)","v":""},{"$f":"IF(PR_DOBA!E22=\"\",\"\",PR_DOBA!E22)","v":""},null,null,null,null,null,{"$f":"IF(PR_DOBA!K22=\"\",\"\",PR_DOBA!K22)","v":""}]
[{"$f":"PR_DOBA!A23","v":9},null,{"$f":"PR_DOBA!C23","v":"So"},{"$f":"IF(PR_DOBA!D23=\"\",\"\",PR_DOBA!D23)","v":""},{"$f":"IF(PR_DOBA!E23=\"\",\"\",PR_DOBA!E23)","v":""},null,null,null,null,null,{"$f":"IF(PR_DOBA!K23=\"\",\"\",PR_DOBA!K23)","v":""}]
[{"$f":"PR_DOBA!A24","v":10},null,{"$f":"PR_DOBA!C24","v":"Ne"},{"$f":"IF(PR_DOBA!D24=\"\",\"\",PR_DOBA!D24)","v":""},{"$f":"IF(PR_DOBA!E24=\"\",\"\",PR_DOBA!E24)","v":""},null,null,null,null,null,{"$f":"IF(PR_DOBA!K24=\"\",\"\",PR_DOBA!K24)","v":""}]
[{"$f":"PR_DOBA!A25","v":11},null,{"$f":"PR_DOBA!C25","v":"Po"},{"$f":"IF(PR_DOBA!D25=\"\",\"\",PR_DOBA!D25)","v":""},{"$f":"IF(PR_DOBA!E25=\"\",\"\",PR_DOBA!E25)","v":""},null,null,null,null,null,{"$f":"IF(PR_DOBA!K25=\"\",\"\",PR_DOBA!K25)","v":""}]
[{"$f":"PR_DOBA!A26","v":12},null,{"$f":"PR_DOBA!C26","v":"Út"},{"$f":"IF(PR_DOBA!D26=\"\",\"\",PR_DOBA!D26)","v":""},{"$f":"IF(PR_DOBA!E26=\"\",\"\",PR_DOBA!E26)","v":""},null,null,null,null,null,{"$f":"IF(PR_DOBA!K26=\"\",\"\",PR_DOBA!K26)","v":""}]
[{"$f":"PR_DOBA!A27","v":13},null,{"$f":"PR_DOBA!C27","v":"St"},{"$f":"IF(PR_DOBA!D27=\"\",\"\",PR_DOBA!D27)","v":""},{"$f":"IF(PR_DOBA!E27=\"\",\"\",PR_DOBA!E27)","v":""},null,null,null,null,null,{"$f":"IF(PR_DOBA!K27=\"\",\"\",PR_DOBA!K27)","v":""}]
[{"$f":"PR_DOBA!A28","v":14},null,{"$f":"PR_DOBA!C28","v":"Čt"},{"$f":"IF(PR_DOBA!D28=\"\",\"\",PR_DOBA!D28)","v":""},{"$f":"IF(PR_DOBA!E28=\"\",\"\",PR_DOBA!E28)","v":""},null,null,null,null,null,{"$f":"IF(PR_DOBA!K28=\"\",\"\",PR_DOBA!K28)","v":""}]
[{"$f":"PR_DOBA!A29","v":15},null,{"$f":"PR_DOBA!C29","v":"Pá"},{"$f":"IF(PR_DOBA!D29=\"\",\"\",PR_DOBA!D29)","v":""},{"$f":"IF(PR_DOBA!E29=\"\",\"\",PR_DOBA!E29)","v":""},null,null,null,null,null,{"$f":"IF(PR_DOBA!K29=\"\",\"\",PR_DOBA!K29)","v":""}]
[{"$f":"PR_DOBA!A30","v":16},null,{"$f":"PR_DOBA!C30","v":"So"},{"$f":"IF(PR_DOBA!D30=\"\",\"\",PR_DOBA!D30)","v":""},{"$f":"IF(PR_DOBA!E30=\"\",\"\",PR_DOBA!E30)","v":""},null,null,null,null,null,{"$f":"IF(PR_DOBA!K30=\"\",\"\",PR_DOBA!K30)","v":""}]
[{"$f":"PR_DOBA!A31","v":17},null,{"$f":"PR_DOBA!C31","v":"Ne"},{"$f":"IF(PR_DOBA!D31=\"\",\"\",PR_DOBA!D31)","v":""},{"$f":"IF(PR_DOBA!E31=\"\",\"\",PR_DOBA!E31)","v":""},null,null,null,null,null,{"$f":"IF(PR_DOBA!K31=\"\",\"\",PR_DOBA!K31)","v":""}]
[{"$f":"PR_DOBA!A32","v":18},null,{"$f":"PR_DOBA!C32","v":"Po"},{"$f":"IF(PR_DOBA!D32=\"\",\"\",PR_DOBA!D32)","v":""},{"$f":"IF(PR_DOBA!E32=\"\",\"\",PR_DOBA!E32)","v":""},null,null,null,null,null,{"$f":"IF(PR_DOBA!K32=\"\",\"\",PR_DOBA!K32)","v":""}]
[{"$f":"PR_DOBA!A33","v":19},null,{"$f":"PR_DOBA!C33","v":"Út"},{"$f":"IF(PR_DOBA!D33=\"\",\"\",PR_DOBA!D33)","v":""},{"$f":"IF(PR_DOBA!E33=\"\",\"\",PR_DOBA!E33)","v":""},null,null,null,null,null,{"$f":"IF(PR_DOBA!K33=\"\",\"\",PR_DOBA!K33)","v":""}]
[{"$f":"PR_DOBA!A34","v":20},null,{"$f":"PR_DOBA!C34","v":"St"},{"$f":"IF(PR_DOBA!D34=\"\",\"\",PR_DOBA!D34)","v":""},{"$f":"IF(PR_DOBA!E34=\"\",\"\",PR_DOBA!E34)","v":""},null,null,null,null,null,{"$f":"IF(PR_DOBA!K34=\"\",\"\",PR_DOBA!K34)","v":""}]
[{"$f":"PR_DOBA!A35","v":21},null,{"$f":"PR_DOBA!C35","v":"Čt"},{"$f":"IF(PR_DOBA!D35=\"\",\"\",PR_DOBA!D35)","v":""},{"$f":"IF(PR_DOBA!E35=\"\",\"\",PR_DOBA!E35)","v":""},null,null,null,null,null,{"$f":"IF(PR_DOBA!K35=\"\",\"\",PR_DOBA!K35)","v":""}]
[{"$f":"PR_DOBA!A36","v":22},null,{"$f":"PR_DOBA!C36","v":"Pá"},{"$f":"IF(PR_DOBA!D36=\"\",\"\",PR_DOBA!D36)","v":""},{"$f":"IF(PR_DOBA!E36=\"\",\"\",PR_DOBA!E36)","v":""},null,null,null,null,null,{"$f":"IF(PR_DOBA!K36=\"\",\"\",PR_DOBA!K36)","v":""}]
[{"$f":"PR_DOBA!A37","v":23},null,{"$f":"PR_DOBA!C37","v":"So"},{"$f":"IF(PR_DOBA!D37=\"\",\"\",PR_DOBA!D37)","v":""},{"$f":"IF(PR_DOBA!E37=\"\",\"\",PR_DOBA!E37)","v":""},null,null,null,null,null,{"$f":"IF(PR_DOBA!K37=\"\",\"\",PR_DOBA!K37)","v":""}]
[{"$f":"PR_DOBA!A38","v":24},null,{"$f":"PR_DOBA!C38","v":"Ne"},{"$f":"IF(PR_DOBA!D38=\"\",\"\",PR_DOBA!D38)","v":""},{"$f":"IF(PR_DOBA!E38=\"\",\"\",PR_DOBA!E38)","v":""},null,null,null,null,null,{"$f":"IF(PR_DOBA!K38=\"\",\"\",PR_DOBA!K38)","v":""}]
[{"$f":"PR_DOBA!A39","v":25},null,{"$f":"PR_DOBA!C39","v":"Po"},{"$f":"IF(PR_DOBA!D39=\"\",\"\",PR_DOBA!D39)","v":""},{"$f":"IF(PR_DOBA!E39=\"\",\"\",PR_DOBA!E39)","v":""},null,null,null,null,null,{"$f":"IF(PR_DOBA!K39=\"\",\"\",PR_DOBA!K39)","v":""}]
[{"$f":"PR_DOBA!A40","v":26},null,{"$f":"PR_DOBA!C40","v":"Út"},{"$f":"IF(PR_DOBA!D40=\"\",\"\",PR_DOBA!D40)","v":""},{"$f":"IF(PR_DOBA!E40=\"\",\"\",PR_DOBA!E40)","v":""},null,null,null,null,null,{"$f":"IF(PR_DOBA!K40=\"\",\"\",PR_DOBA!K40)","v":""}]
[{"$f":"PR_DOBA!A41","v":27},null,{"$f":"PR_DOBA!C41","v":"St"},{"$f":"IF(PR_DOBA!D41=\"\",\"\",PR_DOBA!D41)","v":""},{"$f":"IF(PR_DOBA!E41=\"\",\"\",PR_DOBA!E41)","v":""},null,null,null,null,null,{"$f":"IF(PR_DOBA!K41=\"\",\"\",PR_DOBA!K41)","v":""}]
[{"$f":"PR_DOBA!A42","v":28},null,{"$f":"PR_DOBA!C42","v":"Čt"},{"$f":"IF(PR_DOBA!D42=\"\",\"\",PR_DOBA!D42)","v":""},{"$f":"IF(PR_DOBA!E42=\"\",\"\",PR_DOBA!E42)","v":""},null,null,null,null,null,{"$f":"IF(PR_DOBA!K42=\"\",\"\",PR_DOBA!K42)","v":""}]
[{"$f":"PR_DOBA!A43","v":29},null,{"$f":"PR_DOBA!C43","v":"Pá"},{"$f":"IF(PR_DOBA!D43=\"\",\"\",PR_DOBA!D43)","v":""},{"$f":"IF(PR_DOBA!E43=\"\",\"\",PR_DOBA!E43)","v":""},null,null,null,null,null,{"$f":"IF(PR_DOBA!K43=\"\",\"\",PR_DOBA!K43)","v":""}]
[{"$f":"PR_DOBA!A44","v":30},null,{"$f":"PR_DOBA!C44","v":"So"},{"$f":"IF(PR_DOBA!D44=\"\",\"\",PR_DOBA!D44)","v":""},{"$f":"IF(PR_DOBA!E44=\"\",\"\",PR_DOBA!E44)","v":""},null,null,null,null,null,{"$f":"IF(PR_DOBA!K44=\"\",\"\",PR_DOBA!K44)","v":""}]
[{"$f":"PR_DOBA!A45","v":31},null,{"$f":"PR_DOBA!C45","v":"Ne"},{"$f":"IF(PR_DOBA!D45=\"\",\"\",PR_DOBA!D45)","v":""},{"$f":"IF(PR_DOBA!E45=\"\",\"\",PR_DOBA!E45)","v":""},null,null,null,null,null,{"$f":"IF(PR_DOBA!K45=\"\",\"\",PR_DOBA!K45)","v":""}]
[]
[]
["………………………………",null,null,null,null,null,null,null,null,null,"…………………………"]
["Podpis zaměstnance:",null,null,null,null,null,null,null,null,null,"Podpis nadřízeného"]

{"sheet":"Obrázky","index":2,"n_rows":9,"n_cols":4,"rows_kept":9,"cut":false,"hidden":true,"merged":[]}
["JU",null,null,{"$f":"IF([1]Formulář_HNZ!$B$8=\"Ekonomická_fakulta\",Obrázky!$B$2,IF([1]Formulář_HNZ!$B$8=\"Fakulta_rybářství_a_ochrany_vod\",Obrázky!$B$3,IF([1]Formulář_HNZ!$B$8=\"Filozofická_fakulta\",Obrázky!$B$4,IF([1]Formulář_HNZ!$B$8=\"Pedagogická_fakulta\",Obrázky!$B$5,IF([1]Formulář_HNZ!$B$8=\"Přírodovědecká_fakulta\",Obrázky!$B$6,IF([1]Formulář_HNZ!$B$8=\"Teologická_fakulta\",Obrázky!$B$7,IF([1]Formulář_HNZ!$B$8=\"Zemědělská_fakulta\",Obrázky!$B$8,IF([1]Formulář_HNZ!$B$8=\"Zdravotně_sociální_fakulta\",Obrázky!$B$9,Obrázky!$B$1))))))))","v":{"$error":"#REF!"}}]
["Ekonomická_fakulta"]
["Fakulta_rybářství_a_ochrany_vod"]
["Filozofická_fakulta"]
["Pedagogická_fakulta"]
["Přírodovědecká_fakulta"]
["Teologická_fakulta"]
["Zemědělská_fakulta"]
["Zdravotně_sociální_fakulta"]

{"sheet":"SEZNAMY","index":3,"n_rows":18,"n_cols":21,"rows_kept":18,"cut":false,"hidden":true,"merged":[]}
["S","Státní svátek",null,1,2,3,4,5,6,7,null,"Ekonomická_fakulta",null,"Pedagogická_fakulta","Teologická_fakulta","Fakulta_zemědělská_a_technologická","Přírodovědecká_fakulta","Zdravotně_sociální_fakulta","Fakulta_rybářství_a_ochrany_vod","Filozofická_fakulta","Ekonomická_fakulta"]
["D","Dovolená",null,"Po","Út","St","Čt","Pá","So","Ne",null,"Fakulta_rybářství_a_ochrany_vod",null,"Děkan, děkanát","Děkan, děkanát","Děkan, děkanát","Děkan, děkanát","Děkan, děkanát","Děkan, děkanát","Děkan, děkanát","Děkan, děkanát"]
["D2","Dovolená 1/2 směny",null,null,null,null,null,null,null,null,null,"Filozofická_fakulta",null,"Proděkani a tajemník","Proděkani a tajemník","Proděkani a tajemník","Proděkani a tajemník","Proděkani a tajemníci","Proděkani a tajemník","Proděkani a tajemník","Proděkani a tajemník"]
["I","Indispoziční volno",null,null,null,null,null,null,null,null,null,"Pedagogická_fakulta",null,"Katedra anglistiky","Katedra etiky, psychologie a charitativní péče","Katedra aplikované chemie","Katedra biologie ekosystémů","Ústav fyzioterapie a vybraných medicínských oborů","Výzkumný ústav rybářský a hydrobiologický (ve Vodňanech)","Archeologický ústav","Katedra práva"]
["C","Služební cesta",null,null,null,null,null,null,null,null,null,"Přírodovědecká_fakulta",null,"Katedra biologie","Katedra filosofie a religionistiky","Katedra agroekosystémů","Katedra botaniky","Ústav humanitních studií v pomáhajících profesích","Ústav akvakultury a ochrany vod (v Českých Budějovicích)","Historický ústav","Katedra regionálního managementu"]
["N","Nemoc",null,null,null,null,null,null,null,null,null,"Teologická_fakulta",null,"Katedra aplikované fyziky a techniky","Katedra pedagogiky","Katedra biologických disciplín","Katedra experimentální biologie rostlin","Ústav laboratorní diagnostiky a veřejného zdraví","Ústav komplexních systémů (v Nových Hradech)","Ústav anglistiky","Katedra obchodu a cestovního ruchu"]
["O","OČR",null,null,null,null,null,null,null,null,null,"Zdravotně_sociální_fakulta",null,"Katedra geografie","Katedra teologických věd","Katedra krajinného managementu","Katedra medicínské biologie","Ústav sociálních a speciálněpedagogických věd","Mezinárodní environmentální vzdělávací, poradenské a informační středisko ochrany vod (ve Vodňanech)","Ústav archivnictví a PVH","Katedra řízení"]
["M","Mateřská dovolená",null,null,null,null,null,null,null,null,null,"Fakulta_zemědělská_a_technologická",null,"Katedra germanistiky","Oddělení jazyků","Katedra genetiky a speciální produkce rostlinné","Katedra molekulární biologie a genetiky","Ústav ošetřovatelství, porodní asistence a neodkladné péče","Jihočeské výzkumné centrum akvakultury a biodiverzity hydrocenóz (ve Vodňanech)","Ústav bohemistiky","Katedra ekonomiky"]
["T","Otcovská dovolená",null,null,null,null,null,null,null,null,null,null,null,"Katedra hudební výchovy","Oddělení praxe","Katedra potravinářských biotechnologií a kvality zemědělských produktů","Katedra parazitologie","Ústav radiologie, toxikologie a ochrany obyvatelstva",null,"Ústav česko-německých areálových studií a germanistiky","Katedra aplikované matematiky a informatiky"]
[null,null,null,null,null,null,null,null,null,null,null,null,null,"Katedra informatiky","Oddělení celoživotního vzdělávání","Katedra techniky a kybernetiky","Katedra zoologie",null,null,"Ústav romanistiky","Katedra účetnictví a financí"]
[null,null,null,null,null,null,null,null,null,null,null,null,null,"Katedra matematiky",null,"Katedra rostlinné výroby ","Oddělení jazyků",null,null,"Ústav věd o umění a kultuře","Katedra jazyků"]
[null,null,null,null,null,null,null,null,null,null,null,null,null,"Katedra pedagogiky a psychologie",null,"Katedra aplikované ekologie ","Ústav aplikované informatiky"]
[null,null,null,null,null,null,null,null,null,null,null,null,null,"Katedra slovanských jazyků a literatur",null,"Katedra zootechnických věd","Ústav fyziky a biofyziky"]
[null,null,null,null,null,null,null,null,null,null,null,null,null,"Katedra společenských věd",null,null,"Ústav chemie a biochemie"]
[null,null,null,null,null,null,null,null,null,null,null,null,null,"Katedra tělesné výchovy a sportu",null,null,"Ústav matematiky a biomatematiky"]
[null,null,null,null,null,null,null,null,null,null,null,null,null,"Katedra výchovy ke zdraví",null,null,"Centrum polární ekologie"]
[null,null,null,null,null,null,null,null,null,null,null,null,null,"Katedra výtvarné výchovy",null,null,"Laboratoř archeobotaniky a paleoekologie"]
[null,null,null,null,null,null,null,null,null,null,null,null,null,"Ateliér arteterapie"]